fUSD/lending_fUSD_20240227
["ID","MTS","AMOUNT","RATE_DAILY","PERIOD"]
[315426722,1709027442666,-500.0,0.00022739,2]
[315426724,1709027442675,-506.9729527,0.00022739,2]
[315426727,1709027442685,-500.0,0.00022739,2]
[315426728,1709027442694,-500.0,0.00022739,2]
[315426730,1709027442703,-500.0,0.00022739,2]
[315426733,1709027442713,-500.0,0.00022739,2]
[315426735,1709027442723,-520.55084338,0.00022739,2]
[315426737,1709027442733,-509.40731292,0.00022739,2]
[315426739,1709027442742,-500.0,0.00022739,2]
[315426741,1709027442752,-500.0,0.00022739,2]
[315426743,1709027442763,-500.0,0.00022739,2]
[315426745,1709027442772,-500.0,0.00022739,2]
[315426747,1709027442782,-500.0,0.00022739,2]
[315426749,1709027442791,-305.93,0.00022739,2]
[315426751,1709027442800,-500.0,0.00022739,2]
[315426753,1709027442809,-500.0,0.00022739,2]
[315426755,1709027442819,-500.0,0.00022739,2]
[315426757,1709027442828,-560.02,0.00022739,2]
[315426759,1709027442837,-500.0,0.00022739,2]
[315426761,1709027442848,-500.0,0.00022739,2]
[315426763,1709027442857,-536.45523056,0.00022739,2]
[315426765,1709027442866,-500.0,0.00022739,2]
[315426767,1709027442875,-500.0,0.00022739,2]
[315426770,1709027442884,-500.0,0.00022739,2]
[315426772,1709027442893,-500.0,0.00022739,2]
[315426775,1709027442902,-500.0,0.00022739,2]
[315426778,1709027442911,-500.68685015,0.00022739,2]
[315426780,1709027442920,-500.0,0.00022739,2]
[315426782,1709027442933,-500.0,0.00022739,2]
[315426784,1709027442942,-500.0,0.00022739,2]
[315426786,1709027442952,-500.0,0.00022739,2]
[315426788,1709027442962,-517.11648072,0.00022739,2]
[315426790,1709027442971,-500.0,0.00022739,2]
[315426792,1709027442981,-500.0,0.00022739,2]
[315426794,1709027442990,-500.0,0.00022739,2]
[315426796,1709027442999,-500.0,0.00022739,2]
[315426799,1709027443011,-500.0,0.00022739,2]
[315426802,1709027443020,-500.0,0.00022739,2]
[315426803,1709027443030,-575.62425839,0.00022739,2]
[315426805,1709027443039,-500.0,0.00022739,2]
[315426808,1709027443049,-500.0,0.00022739,2]
[315426810,1709027443058,-500.0,0.00022739,2]
[315426812,1709027443067,-500.0,0.00022739,2]
[315426813,1709027443077,-500.0,0.00022739,2]
[315426815,1709027443087,-507.50088514,0.00022739,2]
[315426817,1709027443097,-500.0,0.00022739,2]
[315426820,1709027443106,-500.0,0.00022739,2]
[315426821,1709027443115,-456.42,0.00022739,2]
[315426823,1709027443125,-500.0,0.00022739,2]
[315426826,1709027443134,-500.0,0.00022739,2]
[315426828,1709027443144,-500.45608964,0.00022739,2]
[315426830,1709027443155,-500.0,0.00022739,2]
[315426832,1709027443165,-505.35607005,0.00022739,2]
[315426834,1709027443176,-500.0,0.00022739,2]
[315426836,1709027443185,-528.79825981,0.00022739,2]
[315426838,1709027443195,-500.0,0.00022739,2]
[315426840,1709027443204,-500.0,0.00022739,2]
[315426842,1709027443218,-500.0,0.00022739,2]
[315426844,1709027443228,-527.06249846,0.00022739,2]
[315426846,1709027443237,-548.30987719,0.00022739,2]
[315426848,1709027443247,-567.67496797,0.00022739,2]
[315426850,1709027443258,-528.48690722,0.00022739,2]
[315426852,1709027443267,-506.4369386,0.00022739,2]
[315426854,1709027443277,-523.38959114,0.00022739,2]
[315426856,1709027443287,-513.46400613,0.00022739,2]
[315426858,1709027443297,-500.0,0.00022739,2]
[315426861,1709027443306,-547.80289225,0.00022739,2]
[315426863,1709027443316,-500.0,0.00022739,2]
[315426865,1709027443325,-500.0,0.00022739,2]
[315426866,1709027443334,-500.0,0.00022739,2]
[315426869,1709027443344,-500.0,0.00022739,2]
[315426870,1709027443354,-333.33,0.00022739,2]
[315426873,1709027443363,-527.0409463,0.00022739,2]
[315426875,1709027443372,-500.0,0.00022739,2]
[315426877,1709027443381,-500.0,0.00022739,2]
[315426879,1709027443390,-520.78780125,0.00022739,2]
[315426881,1709027443399,-559.93329594,0.00022739,2]
[315426882,1709027443409,-500.0,0.00022739,2]
[315426885,1709027443418,-159.79,0.0002274,2]
[315426887,1709027443427,-151.51,0.0002274,2]
[315426889,1709027443437,-152.61,0.00022757,2]
[315426891,1709027443446,-152.9106692,0.00022769,2]
[315426893,1709027443455,-767.01518015,0.00022796,2]
[315426895,1709027443464,-200.0,0.00022816,2]
[315426897,1709027443473,-800.0,0.00022816,2]
[315426899,1709027443483,-200.0,0.00022816,2]
[315426901,1709027443492,-150.0,0.00022833,2]
[315426903,1709027443501,-414.0,0.00022833,2]
[315426904,1709027443511,-1221.52,0.00022874,2]
[315426906,1709027443520,-5134.61634435,0.000229,2]
[315426909,1709027443530,-2433.9191,0.000229,2]
[315426911,1709027443539,-258.77181368,0.000229,2]
[315426913,1709027443549,-210.49055381,0.000229,2]
[315426915,1709027443559,-157.62675042,0.000229,2]
[315426917,1709027443568,-192.67662554,0.000229,2]
[315426919,1709027443577,-1948.68419872,0.000229,2]
[315426921,1709027443587,-676.00541662,0.000229,2]
[315426923,1709027443596,-319.87016728,0.000229,2]
[315426925,1709027443606,-150.0,0.00022961,2]
[315426927,1709027443616,-210.49055355,0.00022962,2]
[315426929,1709027443625,-152.61,0.00022978,2]
[315426931,1709027443634,-529.9,0.00022989,2]
[315426933,1709027443644,-608.44,0.00022989,2]
[315426935,1709027443654,-500.0,0.00022989,2]
[315426937,1709027443663,-500.0,0.00022989,2]
[315426939,1709027443674,-500.0,0.00022989,2]
[315426941,1709027443684,-504.8,0.00022989,2]
[315426943,1709027443695,-500.0,0.00022989,2]
[315426945,1709027443704,-1296.24,0.00022989,2]
[315426947,1709027443714,-500.0,0.00022989,2]
[315426949,1709027443723,-500.0,0.00022989,2]
[315426952,1709027443733,-500.0,0.00022989,2]
[315426954,1709027443743,-500.0,0.00022989,2]
[315426956,1709027443753,-5134.61634435,0.0002299,2]
[315426958,1709027443764,-751.53195758,0.00022998,2]
[315426960,1709027443774,-12430.69999226,0.00022998,2]
[315426962,1709027443784,-500.0,0.00022998,2]
[315426964,1709027443793,-563.29814645,0.00022998,2]
[315426966,1709027443803,-561.87217193,0.00022998,2]
[315426968,1709027443813,-559.15023223,0.00022998,2]
[315426970,1709027443822,-300.53,0.00022998,2]
[315426972,1709027443832,-361.71,0.00022998,2]
[315426974,1709027443841,-351.84,0.00022998,2]
[315426976,1709027443851,-500.0,0.00022998,2]
[315426978,1709027443860,-500.0,0.00022998,2]
[315426980,1709027443870,-500.0,0.00022998,2]
[315426982,1709027443879,-609.97,0.00022998,2]
[315426984,1709027443889,-221.27,0.00022998,2]
[315426987,1709027443899,-500.0,0.00022998,2]
[315426989,1709027443908,-300.69,0.00022998,2]
[315426991,1709027443918,-500.0,0.00022998,2]
[315426993,1709027443927,-451.02680937,0.00022998,2]
[315426995,1709027443936,-301.7,0.00022998,2]
[315426997,1709027443946,-202.75,0.00022998,2]
[315426999,1709027443956,-339.12478902,0.00022998,2]
[315427015,1709027444101,-274.69521098,0.00022998,2]
[315427017,1709027444111,-143.08927554,0.00022998,2]
[315427020,1709027444123,-356.91072446,0.00022998,2]
[315427022,1709027444133,-500.0,0.00022998,2]
[315427024,1709027444143,-196.51631662,0.00022998,2]
[315427026,1709027444156,-42.76368338,0.00022998,2]
[315427028,1709027444166,-776.26232084,0.00022998,2]
[315427031,1709027444180,-271.18767916,0.00022998,2]
[315427033,1709027444190,-157.88,0.00022998,2]
[315427035,1709027444200,-174.98,0.00022998,2]
[315427037,1709027444210,-201.26630652,0.00022998,2]
[315427039,1709027444223,-95.00369348,0.00022998,2]
[315427041,1709027444232,-370.82950972,0.00022998,2]
[315427045,1709027444259,-513.40795899,0.00022739,2]
[315427047,1709027444270,-500.0,0.00022739,2]
[315427050,1709027444281,-158.69049028,0.00022998,2]
[315427052,1709027444290,-154.58,0.00022998,2]
[315427054,1709027444300,-159.56,0.00022998,2]
[315427056,1709027444310,-500.0,0.00022998,2]
[315427058,1709027444320,-500.0,0.00022998,2]
[315427060,1709027444330,-500.0,0.00022998,2]
[315427062,1709027444341,-500.0,0.00022998,2]
[315427064,1709027444350,-209.4440095,0.00022998,2]
[315427067,1709027444363,-290.5559905,0.00022998,2]
[315427069,1709027444373,-500.0,0.00022998,2]
[315427070,1709027444383,-500.0,0.00022998,2]
[315427071,1709027444394,-215194.96764889,0.00022999,2]
[315427072,1709027444403,-500.0,0.00022999,2]
[315427073,1709027444413,-500.0,0.00022999,2]
[315427074,1709027444423,-500.0,0.00022999,2]
[315427075,1709027444432,-500.0,0.00022999,2]
[315427076,1709027444442,-500.0,0.00022999,2]
[315427077,1709027444452,-500.0,0.00022999,2]
[315427078,1709027444461,-376.75134756,0.00022999,2]
[315427080,1709027444471,-500.0,0.00022999,2]
[315427082,1709027444481,-500.0,0.00022999,2]
[315427084,1709027444491,-500.0,0.00022999,2]
[315427086,1709027444501,-500.0,0.00022999,2]
[315427088,1709027444511,-500.0,0.00022999,2]
[315427090,1709027444521,-500.0,0.00022999,2]
[315427092,1709027444530,-500.0,0.00022999,2]
[315427094,1709027444541,-500.0,0.00022999,2]
[315427096,1709027444552,-500.0,0.00022999,2]
[315427098,1709027444561,-500.0,0.00022999,2]
[315427100,1709027444571,-500.0,0.00022999,2]
[315427102,1709027444580,-500.0,0.00022999,2]
[315427104,1709027444589,-500.0,0.00022999,2]
[315427106,1709027444599,-391.6,0.00022999,2]
[315427108,1709027444608,-513.27091771,0.00022999,2]
[315427111,1709027444619,-500.0,0.00022999,2]
[315427113,1709027444628,-528.71623034,0.00022999,2]
[315427115,1709027444638,-326.58501441,0.00022999,10]
[315427117,1709027444647,-258.32303797,0.00022999,2]
[315427119,1709027444657,-500.0,0.00022999,2]
[315427121,1709027444667,-500.0,0.00022999,2]
[315427123,1709027444677,-500.0,0.00022999,2]
[315427125,1709027444686,-500.0,0.00022999,2]
[315427127,1709027444696,-500.0,0.00022999,2]
[315427129,1709027444706,-500.0,0.00022999,2]
[315427131,1709027444715,-426.4,0.00022999,2]
[315427133,1709027444725,-531.36724311,0.00022999,2]
[315427135,1709027444735,-429.36,0.00022999,2]
[315427137,1709027444745,-500.0,0.00022999,2]
[315427140,1709027444756,-441.11255254,0.00022999,2]
[315427142,1709027444767,-500.0,0.00022999,2]
[315427144,1709027444777,-500.0,0.00022999,2]
[315427146,1709027444786,-291.39971247,0.00022999,2]
[315427148,1709027444796,-230.06049937,0.00022999,2]
[315427150,1709027444806,-228.2,0.00022999,2]
[315427152,1709027444816,-571.24,0.00022999,2]
[315427154,1709027444826,-500.0,0.00022999,2]
[315427156,1709027444835,-500.0,0.00022999,2]
[315427158,1709027444845,-500.0,0.00022999,2]
[315427160,1709027444856,-500.0,0.00022999,2]
[315427162,1709027444866,-500.0,0.00022999,2]
[315427164,1709027444875,-196.98,0.00022999,2]
[315427166,1709027444886,-500.0,0.00022999,2]
[315427168,1709027444896,-500.0,0.00022999,2]
[315427171,1709027444906,-500.0,0.00022999,2]
[315427173,1709027444916,-500.0,0.00022999,2]
[315427175,1709027444926,-500.0,0.00022999,2]
[315427177,1709027444938,-278.04,0.00022999,2]
[315427179,1709027444948,-510.7486154,0.00022999,2]
[315427181,1709027444958,-603.23,0.00022999,2]
[315427183,1709027444969,-500.0,0.00022999,2]
[315427185,1709027444978,-603.17,0.00022999,2]
[315427187,1709027444989,-575.8340295,0.00022999,2]
[315427189,1709027444999,-500.0,0.00022999,2]
[315427191,1709027445009,-500.0,0.00022999,2]
[315427194,1709027445021,-340.05,0.00022999,2]
[315427196,1709027445032,-500.0,0.00022999,2]
[315427198,1709027445042,-353.42778924,0.00022999,2]
[315427200,1709027445051,-500.0,0.00022999,2]
[315427202,1709027445061,-500.0,0.00022999,2]
[315427204,1709027445071,-500.0,0.00022999,2]
[315427206,1709027445081,-500.0,0.00022999,2]
[315427208,1709027445091,-500.0,0.00022999,2]
[315427210,1709027445100,-500.0,0.00022999,2]
[315427212,1709027445110,-500.0,0.00022999,2]
[315427214,1709027445120,-469.98,0.00022999,2]
[315427217,1709027445130,-500.0,0.00022999,2]
[315427219,1709027445139,-500.0,0.00022999,2]
[315427221,1709027445149,-500.0,0.00022999,2]
[315427223,1709027445159,-500.0,0.00022999,2]
[315427225,1709027445169,-500.0,0.00022999,2]
[315427227,1709027445181,-500.0,0.00022999,2]
[315427229,1709027445190,-288.92,0.00022999,2]
[315427231,1709027445201,-609.97,0.00022999,2]
[315427233,1709027445210,-609.97,0.00022999,2]
[315427235,1709027445220,-609.97,0.00022999,2]
[315427237,1709027445229,-609.97,0.00022999,2]
[315427239,1709027445239,-609.97,0.00022999,2]
[315427241,1709027445251,-609.97,0.00022999,2]
[315427243,1709027445263,-609.97,0.00022999,2]
[315427245,1709027445273,-609.97,0.00022999,2]
[315427247,1709027445283,-609.97,0.00022999,2]
[315427249,1709027445293,-609.97,0.00022999,2]
[315427252,1709027445302,-609.97,0.00022999,2]
[315427253,1709027445312,-609.97,0.00022999,2]
[315427256,1709027445323,-237.09,0.00022999,2]
[315427258,1709027445332,-500.0,0.00022999,2]
[315427260,1709027445342,-500.0,0.00022999,2]
[315427262,1709027445351,-500.0,0.00022999,2]
[315427264,1709027445361,-500.0,0.00022999,2]
[315427266,1709027445371,-361.66,0.00022999,2]
[315427268,1709027445380,-613.82,0.00022999,2]
[315427270,1709027445390,-613.82,0.00022999,2]
[315427272,1709027445401,-613.82,0.00022999,2]
[315427274,1709027445410,-613.82,0.00022999,2]
[315427276,1709027445420,-613.82,0.00022999,2]
[315427278,1709027445430,-613.82,0.00022999,2]
[315427280,1709027445439,-613.82,0.00022999,2]
[315427282,1709027445448,-613.82,0.00022999,2]
[315427284,1709027445457,-613.82,0.00022999,2]
[315427286,1709027445467,-613.82,0.00022999,2]
[315427288,1709027445476,-613.82,0.00022999,2]
[315427290,1709027445485,-613.82,0.00022999,2]
[315427292,1709027445495,-500.0,0.00022999,2]
[315427294,1709027445504,-500.0,0.00022999,2]
[315427296,1709027445515,-500.0,0.00022999,2]
[315427299,1709027445524,-500.0,0.00022999,2]
[315427301,1709027445534,-500.0,0.00022999,2]
[315427303,1709027445544,-500.0,0.00022999,2]
[315427305,1709027445553,-500.0,0.00022999,2]
[315427307,1709027445563,-500.0,0.00022999,2]
[315427309,1709027445573,-500.0,0.00022999,2]
[315427311,1709027445583,-500.0,0.00022999,2]
[315427313,1709027445592,-500.0,0.00022999,2]
[315427315,1709027445602,-500.0,0.00022999,2]
[315427317,1709027445611,-500.0,0.00022999,2]
[315427319,1709027445621,-500.0,0.00022999,2]
[315427321,1709027445631,-500.0,0.00022999,2]
[315427323,1709027445641,-500.0,0.00022999,2]
[315427325,1709027445651,-500.0,0.00022999,2]
[315427328,1709027445660,-500.0,0.00022999,2]
[315427330,1709027445670,-500.0,0.00022999,2]
[315427332,1709027445679,-624.71,0.00022999,2]
[315427334,1709027445689,-1047.45,0.00022999,2]
[315427336,1709027445699,-1047.45,0.00022999,2]
[315427339,1709027445708,-1047.45,0.00022999,2]
[315427342,1709027445718,-1047.45,0.00022999,2]
[315427344,1709027445728,-1047.45,0.00022999,2]
[315427346,1709027445738,-1047.45,0.00022999,2]
[315427348,1709027445747,-1047.45,0.00022999,2]
[315427351,1709027445757,-1047.45,0.00022999,2]
[315427354,1709027445769,-1047.45,0.00022999,2]
[315427387,1709027445945,-1047.45,0.00022999,2]
[315427389,1709027445955,-1047.45,0.00022999,2]
[315427391,1709027445964,-1047.45,0.00022999,2]
[315427393,1709027445973,-529.9,0.00022999,2]
[315427395,1709027445982,-529.9,0.00022999,2]
[315427397,1709027445992,-529.9,0.00022999,2]
[315427399,1709027446001,-529.9,0.00022999,2]
[315427401,1709027446010,-529.9,0.00022999,2]
[315427403,1709027446020,-529.9,0.00022999,2]
[315427405,1709027446030,-529.9,0.00022999,2]
[315427407,1709027446039,-529.9,0.00022999,2]
[315427409,1709027446049,-529.9,0.00022999,2]
[315427411,1709027446058,-529.9,0.00022999,2]
[315427413,1709027446067,-529.9,0.00022999,2]
[315427415,1709027446076,-529.9,0.00022999,2]
[315427417,1709027446086,-529.9,0.00022999,2]
[315427419,1709027446095,-500.0,0.00022999,2]
[315427422,1709027446104,-500.0,0.00022999,2]
[315427424,1709027446113,-500.0,0.00022999,2]
[315427426,1709027446122,-500.0,0.00022999,2]
[315427428,1709027446131,-500.0,0.00022999,2]
[315427429,1709027446141,-500.0,0.00022999,2]
[315427431,1709027446150,-500.0,0.00022999,2]
[315427433,1709027446160,-500.0,0.00022999,2]
[315427435,1709027446171,-500.0,0.00022999,2]
[315427437,1709027446182,-500.0,0.00022999,2]
[315427439,1709027446192,-500.0,0.00022999,2]
[315427441,1709027446201,-500.0,0.00022999,2]
[315427443,1709027446210,-500.0,0.00022999,2]
[315427445,1709027446221,-500.0,0.00022999,2]
[315427447,1709027446230,-500.0,0.00022999,2]
[315427449,1709027446239,-500.0,0.00022999,2]
[315427452,1709027446249,-500.0,0.00022999,2]
[315427454,1709027446259,-500.0,0.00022999,2]
[315427456,1709027446270,-500.0,0.00022999,2]
[315427458,1709027446279,-500.0,0.00022999,2]
[315427460,1709027446287,-500.0,0.00022999,2]
[315427462,1709027446296,-500.0,0.00022999,2]
[315427464,1709027446306,-500.0,0.00022999,2]
[315427466,1709027446315,-599.98581154,0.00022999,2]
[315427468,1709027446324,-500.0,0.00022999,2]
[315427470,1709027446334,-500.0,0.00022999,2]
[315427472,1709027446348,-500.0,0.00022999,2]
[315427473,1709027446357,-500.0,0.00022999,2]
[315427475,1709027446366,-372.05,0.00022999,2]
[315427477,1709027446375,-500.0,0.00022999,2]
[315427479,1709027446384,-500.0,0.00022999,2]
[315427482,1709027446394,-500.0,0.00022999,2]
[315427484,1709027446403,-500.0,0.00022999,2]
[315427486,1709027446412,-500.0,0.00022999,2]
[315427488,1709027446422,-500.0,0.00022999,2]
[315427490,1709027446431,-157.45,0.00022999,2]
[315427491,1709027446440,-1296.24,0.00022999,2]
[315427494,1709027446450,-1296.24,0.00022999,2]
[315427495,1709027446460,-1296.24,0.00022999,2]
[315427497,1709027446469,-1296.24,0.00022999,2]
[315427499,1709027446478,-1296.24,0.00022999,2]
[315427500,1709027446487,-1296.24,0.00022999,2]
[315427501,1709027446497,-1296.24,0.00022999,2]
[315427502,1709027446507,-1296.24,0.00022999,2]
[315427503,1709027446518,-1296.24,0.00022999,2]
[315427504,1709027446528,-1296.24,0.00022999,2]
[315427505,1709027446538,-1296.24,0.00022999,2]
[315427506,1709027446547,-1296.24,0.00022999,2]
[315427507,1709027446557,-1296.24,0.00022999,2]
[315427509,1709027446567,-500.0,0.00022999,2]
[315427511,1709027446576,-500.0,0.00022999,2]
[315427513,1709027446585,-500.0,0.00022999,2]
[315427515,1709027446594,-500.0,0.00022999,2]
[315427517,1709027446604,-500.0,0.00022999,2]
[315427519,1709027446613,-213.76,0.00022999,2]
[315427521,1709027446622,-500.0,0.00022999,2]
[315427523,1709027446631,-500.0,0.00022999,2]
[315427525,1709027446640,-500.0,0.00022999,2]
[315427527,1709027446649,-344.53670325,0.00022999,2]
[315427529,1709027446658,-500.0,0.00022999,2]
[315427531,1709027446667,-500.0,0.00022999,2]
[315427533,1709027446677,-500.0,0.00022999,2]
[315427534,1709027446687,-500.0,0.00022999,2]
[315427537,1709027446697,-500.0,0.00022999,2]
[315427539,1709027446706,-500.0,0.00022999,2]
[315427541,1709027446716,-500.0,0.00022999,2]
[315427543,1709027446725,-500.0,0.00022999,2]
[315427545,1709027446735,-500.0,0.00022999,2]
[315427547,1709027446744,-500.0,0.00022999,2]
[315427549,1709027446753,-500.0,0.00022999,2]
[315427551,1709027446763,-500.0,0.00022999,2]
[315427553,1709027446772,-500.0,0.00022999,2]
[315427555,1709027446782,-326.05,0.00022999,2]
[315427557,1709027446791,-500.0,0.00022999,2]
[315427559,1709027446801,-500.0,0.00022999,2]
[315427560,1709027446810,-500.0,0.00022999,2]
[315427563,1709027446819,-500.0,0.00022999,2]
[315427565,1709027446829,-500.0,0.00022999,2]
[315427567,1709027446838,-500.0,0.00022999,2]
[315427569,1709027446848,-500.0,0.00022999,2]
[315427571,1709027446857,-500.0,0.00022999,2]
[315427573,1709027446866,-500.0,0.00022999,2]
[315427575,1709027446876,-500.0,0.00022999,2]
[315427577,1709027446886,-437.54819063,0.00022999,2]
[315427579,1709027446896,-154.52,0.00022999,2]
[315427581,1709027446905,-81652.4229081,0.00023,2]
[315427595,1709027447026,-173.04632483,0.00019899,2]
[315427597,1709027447036,-176.263482,0.000229,2]
[315427598,1709027447044,-55.69101932,0.00022989,2]
[315427601,1709027447056,-444.30898068,0.00022989,2]
[315427603,1709027447065,-463.81207036,0.00022999,2]
[315427605,1709027447077,-36.18792964,0.00022999,2]
[315427607,1709027447086,-500.0,0.00022999,2]
[315427609,1709027447094,-401.56999412,0.00022999,2]
[315427610,1709027447104,-2329.40202734,0.00023,4]
[315427613,1709027447115,-5664.4,0.00023,4]
[315427615,1709027447126,-1007.64497966,0.00023,4]
[315427617,1709027447137,-2846.10347603,0.00023,4]
[315427619,1709027447148,-2757.92236534,0.00023,4]
[315427622,1709027447160,-11048.0040491,0.00023,4]
[315427624,1709027447172,-15176.25401523,0.00023,4]
[315427626,1709027447185,-1744.0274952,0.00023,4]
[315427629,1709027447201,-11209.98945533,0.00023,4]
[315427638,1709027447286,-1132.82,0.00023,4]
[315427641,1709027447298,-5664.51134918,0.00023,4]
[315427643,1709027447309,-1696.25928,0.00023,4]
[315427645,1709027447320,-3219.86350612,0.00023,4]
[315427647,1709027447331,-6510.5952,0.00023,4]
[315427650,1709027447346,-17589.09300859,0.00023,4]
[315427652,1709027447355,-196.27135331,0.00023,2]
[315427654,1709027447364,-95359.38740449,0.00023,2]
[315427658,1709027447389,-668.6056548,0.00023,2]
[315427660,1709027447401,-501.5589403,0.00023,2]
[315427662,1709027447413,-116701.91259712,0.00023,2]
[315427664,1709027447425,-2459.12728494,0.00023,2]
[315427667,1709027447436,-4276.84197851,0.00023,2]
[315427672,1709027447527,-173.04632482,0.00020499,2]
[315427674,1709027447536,-28144.95367519,0.00023,2]
[315427676,1709027447548,-282.77442,0.00023,2]
[315427679,1709027447567,-573.29863043,0.00023,2]
[315427680,1709027447635,-200.0,0.0002201,2]
[315427681,1709027447644,-1050.08539075,0.00022738,2]
[315427682,1709027447653,-249.08956726,0.00022738,2]
[315427683,1709027447662,-1583.414947,0.00023,2]
[315427684,1709027447673,-4708.84374699,0.00023,2]
[315427685,1709027447685,-5467.24166267,0.00023,2]
[315427686,1709027447696,-975.87209809,0.00023,2]
[315427687,1709027447707,-3476.36064253,0.00023,2]
[315427688,1709027447718,-358.47029349,0.00023,2]
[315427689,1709027447729,-509117.75490066,0.00023,2]
[315427690,1709027447741,-100448.6113362,0.00023,2]
[315427691,1709027447756,-8397.18940789,0.00023,2]
[315427699,1709027447900,-286.03327057,0.00022989,3]
[315427707,1709027447963,-570.60672943,0.00022989,3]
[315427708,1709027447972,-13555.97867059,0.00023,2]
[315427711,1709027447984,-3437.7464,0.00023,2]
[315427713,1709027447995,-566.45,0.00023,2]
[315427715,1709027448007,-17568.54931732,0.00023,2]
[315427944,1709027481644,448.17630753,9e-05,2]
[315427945,1709027481856,259.0,0.000175,2]
[315427946,1709027492854,325.4613785,0.0001,2]
[315428056,1709028292923,513.92029409,0.0001,2]
[315428057,1709028339390,1268.41799628,0.000175,2]
[315428058,1709028402117,-201.01957451,0.00018624,5]
[315428059,1709028425122,-231.68142865,0.00018623,2]
[315428060,1709028425143,-13538.31384879,0.00018624,5]
[315428061,1709028432106,-162.35729229,0.00018622,2]
[315428062,1709028440094,-155.0,0.00018621,2]
[315428063,1709028440116,-4.17689174,0.00018622,2]
[315428064,1709028446152,-299.30428222,0.00018622,2]
[315428065,1709028446174,-2928.05132031,0.00018623,2]
[315428066,1709028446196,-26260.6665767,0.00018624,5]
[315428067,1709028446218,-23735.61454987,0.00018625,2]
[315428068,1709028446239,-204.0,0.00018625,2]
[315428069,1709028446259,-1138.79,0.00019326,2]
[315428070,1709028446280,-165.46299548,0.00019483,2]
[315428071,1709028446301,-165.46299545,0.00019971,2]
[315428072,1709028446320,-900.40662794,0.0002,2]
[315428073,1709028446342,-204.0,0.00020158,4]
[315428074,1709028446361,-300.0,0.00020427,2]
[315428075,1709028446382,-300.0,0.00020427,2]
[315428076,1709028446402,-165.46299545,0.00020459,2]
[315428077,1709028446423,-165.46299545,0.00020947,2]
[315428078,1709028446443,-497.37,0.00021084,2]
[315428079,1709028446468,-249.08956726,0.00021098,2]
[315428080,1709028446488,-500.0,0.00021124,2]
[315428081,1709028446509,-23900.0,0.00021231,2]
[315428082,1709028446529,-216.0,0.00021231,2]
[315428083,1709028446549,-250.0,0.00021247,2]
[315428084,1709028446571,-537.14,0.00021272,2]
[315428085,1709028446593,-250.0,0.00021274,2]
[315428086,1709028446614,-200.0,0.00021277,2]
[315428087,1709028446641,-151.97,0.00021278,2]
[315428088,1709028446661,-2000.0,0.00021296,2]
[315428089,1709028446681,-750.0,0.00021327,2]
[315428090,1709028446702,-151.97,0.00021401,2]
[315428091,1709028446724,-165.46299545,0.00021436,2]
[315428092,1709028446745,-151.97,0.00021524,2]
[315428093,1709028446766,-784.0,0.00021564,2]
[315428094,1709028446787,-173.63,0.00021564,2]
[315428095,1709028446808,-3923.85,0.00021564,2]
[315428096,1709028446829,-1138.79,0.00021589,2]
[315428097,1709028446855,-151.97,0.00021647,2]